[Event "Early-Titled-Tuesday-Blitz-September-26-2023"]
[Site "Chess.com"]
[Date "2023.09.26"]
[Round "10"]
[White "bubeliang"]
[Black "JoliyRoger"]
[Result "0-1"]
[WhiteElo "2625"]
[BlackElo "2520"]
[TimeControl "180+1"]
[EndTime "9:57:28 PDT"]
[Termination "JoliyRoger won by checkmate"]

1. e4 {[%clk 0:03:00.9]} 1... c6 {[%clk 0:02:41.5]} 2. d4 {[%clk 0:02:57.2]}
2... d5 {[%clk 0:02:41.9]} 3. Nc3 {[%clk 0:02:57]} 3... dxe4 {[%clk 0:02:41.4]}
4. Nxe4 {[%clk 0:02:57.9]} 4... Bf5 {[%clk 0:02:41.8]} 5. Ng3 {[%clk 0:02:57.3]}
5... Bg6 {[%clk 0:02:42.4]} 6. Nh3 {[%clk 0:02:57.1]} 6... e6 {[%clk 0:02:42.5]}
7. Nf4 {[%clk 0:02:55.9]} 7... Bd6 {[%clk 0:02:43]} 8. h4 {[%clk 0:02:53.5]}
8... Bxf4 {[%clk 0:02:37.9]} 9. Bxf4 {[%clk 0:02:54.4]} 9... h6 {[%clk
0:02:37.7]} 10. c3 {[%clk 0:02:51.7]} 10... Nf6 {[%clk 0:02:36.9]} 11. Be5
{[%clk 0:02:49.6]} 11... Nbd7 {[%clk 0:02:35.5]} 12. Be2 {[%clk 0:02:38.4]}
12... O-O {[%clk 0:02:34.6]} 13. f4 {[%clk 0:02:27.4]} 13... Nd5 {[%clk
0:02:23.2]} 14. c4 {[%clk 0:02:04.6]} 14... Ne3 {[%clk 0:02:11.1]} 15. Qd2
{[%clk 0:01:59.5]} 15... Nc2+ {[%clk 0:02:10.6]} 16. Kf2 {[%clk 0:01:59.4]}
16... Nxa1 {[%clk 0:02:11]} 17. Rxa1 {[%clk 0:01:59.1]} 17... Nxe5 {[%clk
0:02:04.5]} 18. fxe5 {[%clk 0:01:58.1]} 18... Qxh4 {[%clk 0:02:02.8]} 19. Rh1
{[%clk 0:01:57.1]} 19... Qg5 {[%clk 0:02:00.9]} 20. Qxg5 {[%clk 0:01:43.7]}
20... hxg5 {[%clk 0:01:59.1]} 21. Bg4 {[%clk 0:01:34.4]} 21... Rfd8 {[%clk
0:01:50.7]} 22. Ke3 {[%clk 0:01:33.7]} 22... Rd7 {[%clk 0:01:44.6]} 23. c5
{[%clk 0:01:28.9]} 23... b6 {[%clk 0:01:16.4]} 24. b4 {[%clk 0:01:25.1]} 24...
a5 {[%clk 0:01:08.8]} 25. Bf3 {[%clk 0:00:59.1]} 25... axb4 {[%clk 0:01:06.1]}
26. Bxc6 {[%clk 0:00:54.9]} 26... Ra3+ {[%clk 0:01:06.7]} 27. Kf2 {[%clk
0:00:55.4]} 27... Rxa2+ {[%clk 0:00:55.2]} 28. Ne2 {[%clk 0:00:53.2]} 28... Rxd4
{[%clk 0:00:53.2]} 29. cxb6 {[%clk 0:00:51.6]} 29... Rd8 {[%clk 0:00:42.6]} 30.
Ke3 {[%clk 0:00:38.1]} 30... Ra3+ {[%clk 0:00:36.2]} 31. Kf2 {[%clk 0:00:35.9]}
31... Rb8 {[%clk 0:00:29.2]} 32. b7 {[%clk 0:00:31.9]} 32... Ra6 {[%clk
0:00:28]} 33. Bf3 {[%clk 0:00:29]} 33... Rb6 {[%clk 0:00:22.8]} 34. Rd1 {[%clk
0:00:24.6]} 34... b3 {[%clk 0:00:16.8]} 35. Nc3 {[%clk 0:00:19.6]} 35... R6xb7
{[%clk 0:00:14.1]} 36. Bxb7 {[%clk 0:00:15.5]} 36... Rxb7 {[%clk 0:00:14.6]} 37.
Nb1 {[%clk 0:00:12.2]} 37... Bxb1 {[%clk 0:00:13.3]} 38. Rxb1 {[%clk 0:00:11.9]}
38... b2 {[%clk 0:00:13.8]} 39. Ke3 {[%clk 0:00:12.8]} 39... Kh7 {[%clk
0:00:12.5]} 40. Kd4 {[%clk 0:00:13.7]} 40... Kg6 {[%clk 0:00:11.8]} 41. Ke4
{[%clk 0:00:14.3]} 41... Rb4+ {[%clk 0:00:11.8]} 42. Kd3 {[%clk 0:00:15]} 42...
Kf5 {[%clk 0:00:12.3]} 43. Kc3 {[%clk 0:00:15.9]} 43... Rb5 {[%clk 0:00:12.6]}
44. Kc2 {[%clk 0:00:16.8]} 44... Kxe5 {[%clk 0:00:10.7]} 45. Re1+ {[%clk
0:00:16.7]} 45... Kf4 {[%clk 0:00:11.1]} 46. Kb1 {[%clk 0:00:17.6]} 46... Rb6
{[%clk 0:00:04.7]} 47. Rf1+ {[%clk 0:00:18.5]} 47... Kg3 {[%clk 0:00:05]} 48.
Rxf7 {[%clk 0:00:19.4]} 48... Kxg2 {[%clk 0:00:05.3]} 49. Rxg7 {[%clk
0:00:20.3]} 49... Rb5 {[%clk 0:00:04.3]} 50. Rg6 {[%clk 0:00:21.2]} 50... Kg3
{[%clk 0:00:03.8]} 51. Rxe6 {[%clk 0:00:21.5]} 51... g4 {[%clk 0:00:04.3]} 52.
Re3+ {[%clk 0:00:21.8]} 52... Kf2 {[%clk 0:00:04.6]} 53. Re8 {[%clk 0:00:22.7]}
53... g3 {[%clk 0:00:05.1]} 54. Rf8+ {[%clk 0:00:23.6]} 54... Kg2 {[%clk
0:00:05.5]} 55. Rg8 {[%clk 0:00:24.5]} 55... Kf2 {[%clk 0:00:05.6]} 56. Rf8+
{[%clk 0:00:24.3]} 56... Kg1 {[%clk 0:00:06.1]} 57. Rg8 {[%clk 0:00:25.2]} 57...
g2 {[%clk 0:00:05.9]} 58. Rg7 {[%clk 0:00:25.8]} 58... Rb3 {[%clk 0:00:05.4]}
59. Rg6 {[%clk 0:00:25.3]} 59... Kf2 {[%clk 0:00:05.7]} 60. Rf6+ {[%clk
0:00:23.9]} 60... Rf3 {[%clk 0:00:06.2]} 61. Rg6 {[%clk 0:00:24.6]} 61... Rg3
{[%clk 0:00:05.6]} 62. Rf6+ {[%clk 0:00:24.4]} 62... Ke3 {[%clk 0:00:06]} 63.
Kxb2 {[%clk 0:00:23.6]} 63... g1=Q {[%clk 0:00:05.7]} 64. Rc6 {[%clk 0:00:24.2]}
64... Qf2+ {[%clk 0:00:04.1]} 65. Rc2 {[%clk 0:00:24.7]} 65... Qf6+ {[%clk
0:00:04.5]} 66. Kb1 {[%clk 0:00:23.5]} 66... Rg1+ {[%clk 0:00:03.7]} 67. Ka2
{[%clk 0:00:23.7]} 67... Ra1+ {[%clk 0:00:01.9]} 68. Kb3 {[%clk 0:00:24.6]}
68... Qb6+ {[%clk 0:00:02.3]} 69. Kc4 {[%clk 0:00:25.5]} 69... Ra4+ {[%clk
0:00:02.4]} 70. Kd5 {[%clk 0:00:25.6]} 70... Rd4+ {[%clk 0:00:03.1]} 71. Ke5
{[%clk 0:00:26.2]} 71... Qd6+ {[%clk 0:00:03.4]} 72. Kf5 {[%clk 0:00:27.1]}
72... Rf4+ {[%clk 0:00:04.1]} 73. Kg5 {[%clk 0:00:28]} 73... Qf6+ {[%clk
0:00:04.4]} 74. Kh5 {[%clk 0:00:28.9]} 74... Rh4# {[%clk 0:00:05]} 0-1

[Event "Early-Titled-Tuesday-Blitz-September-26-2023"]
[Site "Chess.com"]
[Date "2023.09.26"]
[Round "10"]
[White "Irina_Mikhaylova"]
[Black "Francisco_Ferrari"]
[Result "1/2-1/2"]
[WhiteElo "2303"]
[BlackElo "2396"]
[TimeControl "180+1"]
[EndTime "9:57:28 PDT"]
[Termination "Game drawn - insufficient material"]

1. d4 {[%clk 0:03:00.9]} 1... Nf6 {[%clk 0:02:58.3]} 2. c4 {[%clk 0:03:01]} 2...
e6 {[%clk 0:02:58.3]} 3. Nf3 {[%clk 0:02:59.5]} 3... d5 {[%clk 0:02:58.8]} 4.
Nc3 {[%clk 0:02:58.7]} 4... Be7 {[%clk 0:02:52.6]} 5. Bg5 {[%clk 0:02:58.6]}
5... O-O {[%clk 0:02:52.7]} 6. e3 {[%clk 0:02:58.8]} 6... h6 {[%clk 0:02:51.1]}
7. Bh4 {[%clk 0:02:58.5]} 7... b6 {[%clk 0:02:51.7]} 8. a3 {[%clk 0:02:58.2]}
8... Bb7 {[%clk 0:02:51.5]} 9. Qc2 {[%clk 0:02:58.7]} 9... Nbd7 {[%clk 0:02:51]}
10. Rd1 {[%clk 0:02:58.8]} 10... Rc8 {[%clk 0:02:49]} 11. Bd3 {[%clk 0:02:59.1]}
11... c5 {[%clk 0:02:48.8]} 12. cxd5 {[%clk 0:02:59]} 12... Nxd5 {[%clk
0:02:47.7]} 13. Bxe7 {[%clk 0:02:58.2]} 13... Qxe7 {[%clk 0:02:48.2]} 14. Nxd5
{[%clk 0:02:55.9]} 14... Bxd5 {[%clk 0:02:48.6]} 15. Qb1 {[%clk 0:02:56.2]}
15... cxd4 {[%clk 0:02:44.4]} 16. Nxd4 {[%clk 0:02:48.2]} 16... Ne5 {[%clk
0:02:31.1]} 17. Be4 {[%clk 0:02:34]} 17... Bc4 {[%clk 0:02:20.5]} 18. f3 {[%clk
0:02:16.6]} 18... Rfd8 {[%clk 0:01:40.9]} 19. Kf2 {[%clk 0:02:15.1]} 19... f5
{[%clk 0:01:31.6]} 20. Bc2 {[%clk 0:02:14.6]} 20... f4 {[%clk 0:01:32]} 21. exf4
{[%clk 0:02:06.2]} 21... Nf7 {[%clk 0:01:16.6]} 22. b4 {[%clk 0:01:13.1]} 22...
Qf6 {[%clk 0:00:43.1]} 23. Ne2 {[%clk 0:00:53.2]} 23... Rxd1 {[%clk 0:00:34.4]}
24. Rxd1 {[%clk 0:00:52.6]} 24... Qh4+ {[%clk 0:00:34.4]} 25. Ng3 {[%clk
0:00:42.6]} 25... Qxf4 {[%clk 0:00:34.6]} 26. Be4 {[%clk 0:00:33.5]} 26... Ng5
{[%clk 0:00:28.8]} 27. Qc1 {[%clk 0:00:31]} 27... Nxe4+ {[%clk 0:00:24.6]} 28.
Nxe4 {[%clk 0:00:30.9]} 28... Qxh2 {[%clk 0:00:22.4]} 29. Qe3 {[%clk 0:00:22.6]}
29... Qh4+ {[%clk 0:00:18]} 30. Ng3 {[%clk 0:00:20]} 30... Qf6 {[%clk
0:00:16.4]} 31. Qd4 {[%clk 0:00:18.9]} 31... Qxd4+ {[%clk 0:00:12.1]} 32. Rxd4
{[%clk 0:00:18.7]} 32... Bd5 {[%clk 0:00:13]} 33. Ne4 {[%clk 0:00:17.6]} 33...
Rc2+ {[%clk 0:00:12.9]} 34. Kg3 {[%clk 0:00:17.7]} 34... Ra2 {[%clk 0:00:12.8]}
35. Nc3 {[%clk 0:00:15.9]} 35... Rxa3 {[%clk 0:00:12]} 36. Nxd5 {[%clk
0:00:16.4]} 36... exd5 {[%clk 0:00:12.9]} 37. Rxd5 {[%clk 0:00:17]} 37... Rb3
{[%clk 0:00:13.3]} 38. Rd8+ {[%clk 0:00:16.8]} 38... Kh7 {[%clk 0:00:13.2]} 39.
Rd7 {[%clk 0:00:17.3]} 39... Rxb4 {[%clk 0:00:13.7]} 40. Rxa7 {[%clk 0:00:18]}
40... b5 {[%clk 0:00:14.3]} 41. Rb7 {[%clk 0:00:18.6]} 41... Rb3 {[%clk
0:00:15]} 42. Kh3 {[%clk 0:00:18.9]} 42... b4 {[%clk 0:00:15.6]} 43. Kg4 {[%clk
0:00:19.3]} 43... Rb2 {[%clk 0:00:16.2]} 44. g3 {[%clk 0:00:19.8]} 44... b3
{[%clk 0:00:16.7]} 45. f4 {[%clk 0:00:20.2]} 45... Rb1 {[%clk 0:00:17.1]} 46.
Kh3 {[%clk 0:00:20.6]} 46... b2 {[%clk 0:00:17.5]} 47. Kg2 {[%clk 0:00:21.1]}
47... Kg6 {[%clk 0:00:18.1]} 48. Rb5 {[%clk 0:00:20.5]} 48... Kf6 {[%clk
0:00:18]} 49. g4 {[%clk 0:00:20.7]} 49... g6 {[%clk 0:00:16.5]} 50. Kh2 {[%clk
0:00:20.7]} 50... h5 {[%clk 0:00:15.9]} 51. gxh5 {[%clk 0:00:20.1]} 51... gxh5
{[%clk 0:00:16.8]} 52. Kg2 {[%clk 0:00:20.7]} 52... Kg6 {[%clk 0:00:17.4]} 53.
Kh2 {[%clk 0:00:21.1]} 53... h4 {[%clk 0:00:18]} 54. Kg2 {[%clk 0:00:21.5]}
54... h3+ {[%clk 0:00:18.1]} 55. Kh2 {[%clk 0:00:21.9]} 55... Kf6 {[%clk
0:00:18.6]} 56. Rb8 {[%clk 0:00:18.8]} 56... Kf5 {[%clk 0:00:18.5]} 57. Rb4
{[%clk 0:00:18.9]} 57... Kg4 {[%clk 0:00:17.9]} 58. Rb8 {[%clk 0:00:18.7]} 58...
Kxf4 {[%clk 0:00:17.8]} 59. Rb4+ {[%clk 0:00:18.9]} 59... Ke3 {[%clk 0:00:17.9]}
60. Rb8 {[%clk 0:00:19]} 60... Kd2 {[%clk 0:00:18.3]} 61. Rd8+ {[%clk
0:00:19.1]} 61... Kc2 {[%clk 0:00:18.7]} 62. Rc8+ {[%clk 0:00:19.5]} 62... Kb3
{[%clk 0:00:19]} 63. Rb8+ {[%clk 0:00:20]} 63... Kc4 {[%clk 0:00:19.3]} 64. Rc8+
{[%clk 0:00:20.3]} 64... Kd5 {[%clk 0:00:19.9]} 65. Rd8+ {[%clk 0:00:19.9]}
65... Kc6 {[%clk 0:00:20.4]} 66. Rb8 {[%clk 0:00:20.1]} 66... Kc7 {[%clk
0:00:18.3]} 67. Rb3 {[%clk 0:00:20.3]} 67... Kc6 {[%clk 0:00:18.3]} 68. Rb8
{[%clk 0:00:20.1]} 68... Kd6 {[%clk 0:00:18.5]} 69. Rb3 {[%clk 0:00:19.6]} 69...
Ke5 {[%clk 0:00:18.8]} 70. Rb8 {[%clk 0:00:19.5]} 70... Kf4 {[%clk 0:00:19]} 71.
Rf8+ {[%clk 0:00:19.4]} 71... Kg5 {[%clk 0:00:19.7]} 72. Rb8 {[%clk 0:00:19.6]}
72... Kg4 {[%clk 0:00:18.2]} 73. Rb4+ {[%clk 0:00:19.6]} 73... Kf3 {[%clk
0:00:18.4]} 74. Rb8 {[%clk 0:00:19.3]} 74... Rf1 {[%clk 0:00:16.2]} 75. Rb3+
{[%clk 0:00:18.2]} 75... Ke4 {[%clk 0:00:15.9]} 76. Rxb2 {[%clk 0:00:17.9]}
76... Rf3 {[%clk 0:00:16.1]} 77. Rb8 {[%clk 0:00:15.8]} 77... Re3 {[%clk
0:00:16.3]} 78. Re8+ {[%clk 0:00:15.7]} 78... Kf3 {[%clk 0:00:16.8]} 79. Rxe3+
{[%clk 0:00:15.7]} 79... Kxe3 {[%clk 0:00:17.7]} 80. Kxh3 {[%clk 0:00:16.3]}
1/2-1/2

[Event "Early-Titled-Tuesday-Blitz-September-26-2023"]
[Site "Chess.com"]
[Date "2023.09.26"]
[Round "10"]
[White "MAGMAchess02"]
[Black "Darko-Dimitrijevic"]
[Result "1-0"]
[WhiteElo "2385"]
[BlackElo "2100"]
[TimeControl "180+1"]
[EndTime "9:57:28 PDT"]
[Termination "MAGMAchess02 won by resignation"]

1. e4 {[%clk 0:03:00.6]} 1... d6 {[%clk 0:02:57.4]} 2. d4 {[%clk 0:02:59.4]}
2... Nf6 {[%clk 0:02:57.4]} 3. Nc3 {[%clk 0:02:59.7]} 3... c6 {[%clk 0:02:57.4]}
4. Nf3 {[%clk 0:02:58.1]} 4... Qa5 {[%clk 0:02:56.1]} 5. Bd3 {[%clk 0:02:53.1]}
5... e5 {[%clk 0:02:55]} 6. O-O {[%clk 0:02:51.9]} 6... Nbd7 {[%clk 0:02:54.1]}
7. h3 {[%clk 0:02:49.7]} 7... Be7 {[%clk 0:02:53.9]} 8. a3 {[%clk 0:02:43.9]}
8... O-O {[%clk 0:02:52]} 9. b4 {[%clk 0:02:43.3]} 9... Qc7 {[%clk 0:02:51.3]}
10. Bb2 {[%clk 0:02:42.4]} 10... Re8 {[%clk 0:02:50.2]} 11. dxe5 {[%clk
0:02:34.1]} 11... dxe5 {[%clk 0:02:49.6]} 12. Qe2 {[%clk 0:02:30.1]} 12... Nf8
{[%clk 0:02:49.3]} 13. Na4 {[%clk 0:02:27.2]} 13... Ng6 {[%clk 0:02:47.4]} 14.
Rfd1 {[%clk 0:02:15.5]} 14... h6 {[%clk 0:02:25.3]} 15. Kh2 {[%clk 0:02:12]}
15... Be6 {[%clk 0:02:24.4]} 16. g3 {[%clk 0:02:07.9]} 16... Rad8 {[%clk
0:02:20.4]} 17. c4 {[%clk 0:01:57.2]} 17... Bf8 {[%clk 0:02:07.2]} 18. Rac1
{[%clk 0:01:36]} 18... Bc8 {[%clk 0:02:06.5]} 19. c5 {[%clk 0:01:26.6]} 19...
Nh7 {[%clk 0:01:51.7]} 20. Bc4 {[%clk 0:01:22.4]} 20... Qe7 {[%clk 0:01:48.6]}
21. Rc2 {[%clk 0:01:13.3]} 21... Ng5 {[%clk 0:01:46.9]} 22. Nxg5 {[%clk
0:00:58.3]} 22... Qxg5 {[%clk 0:01:43.3]} 23. Rcd2 {[%clk 0:00:56.3]} 23... h5
{[%clk 0:01:24.3]} 24. Qe3 {[%clk 0:00:48.4]} 24... Qxe3 {[%clk 0:01:18.3]} 25.
fxe3 {[%clk 0:00:49.3]} 25... Be7 {[%clk 0:01:18]} 26. Nc3 {[%clk 0:00:33.7]}
26... Bg5 {[%clk 0:01:15.9]} 27. Rxd8 {[%clk 0:00:28.3]} 27... Bxd8 {[%clk
0:01:14.3]} 28. Rd2 {[%clk 0:00:14.5]} 28... Bg5 {[%clk 0:01:12]} 29. Nd1 {[%clk
0:00:14.6]} 29... Kf8 {[%clk 0:01:09.7]} 30. Kg2 {[%clk 0:00:14.3]} 30... h4
{[%clk 0:01:09.1]} 31. g4 {[%clk 0:00:14.4]} 31... Ke7 {[%clk 0:01:01.6]} 32.
Kf3 {[%clk 0:00:14.7]} 32... Be6 {[%clk 0:00:59.9]} 33. Bxe6 {[%clk 0:00:06.8]}
33... Kxe6 {[%clk 0:00:59.8]} 34. Rd6+ {[%clk 0:00:06.2]} 34... Ke7 {[%clk
0:00:58.7]} 35. Nf2 {[%clk 0:00:06.4]} 35... Nf8 {[%clk 0:00:54.5]} 36. Nd3
{[%clk 0:00:06.2]} 36... f6 {[%clk 0:00:52]} 37. a4 {[%clk 0:00:04.9]} 37... Ne6
{[%clk 0:00:51.7]} 38. a5 {[%clk 0:00:05.3]} 38... a6 {[%clk 0:00:50.3]} 39. Bc1
{[%clk 0:00:03.5]} 39... Rd8 {[%clk 0:00:50.3]} 40. Rxd8 {[%clk 0:00:03.1]}
40... Kxd8 {[%clk 0:00:48.6]} 41. Nb2 {[%clk 0:00:03.5]} 41... Bh6 {[%clk
0:00:47.3]} 42. Nc4 {[%clk 0:00:02.8]} 42... g6 {[%clk 0:00:45.3]} 43. Nd6
{[%clk 0:00:02.3]} 43... Kc7 {[%clk 0:00:43.5]} 44. Nf7 {[%clk 0:00:02.5]} 44...
Bf8 {[%clk 0:00:41.2]} 45. Bb2 {[%clk 0:00:02.1]} 45... Nd8 {[%clk 0:00:38.5]}
46. Nxd8 {[%clk 0:00:01.6]} 46... Kxd8 {[%clk 0:00:38.5]} 47. g5 {[%clk
0:00:02.5]} 47... Ke7 {[%clk 0:00:35.8]} 48. gxf6+ {[%clk 0:00:02.8]} 48... Kxf6
{[%clk 0:00:35.6]} 49. Kg4 {[%clk 0:00:03.7]} 49... g5 {[%clk 0:00:35.7]} 50.
Bc1 {[%clk 0:00:03.4]} 50... Be7 {[%clk 0:00:34.9]} 51. Bb2 {[%clk 0:00:03.7]}
51... Bd8 {[%clk 0:00:34.1]} 52. Bc3 {[%clk 0:00:04.1]} 52... Be7 {[%clk
0:00:33.7]} 53. Kh5 {[%clk 0:00:04.5]} 53... Bf8 {[%clk 0:00:30.7]} 54. Bb2
{[%clk 0:00:04.7]} 54... Be7 {[%clk 0:00:30.7]} 55. Bc1 {[%clk 0:00:05]} 55...
Kg7 {[%clk 0:00:29.5]} 56. Bd2 {[%clk 0:00:04.8]} 56... Bf6 {[%clk 0:00:28.7]}
57. Bc3 {[%clk 0:00:05.3]} 57... Kh7 {[%clk 0:00:27.5]} 58. Kg4 {[%clk
0:00:05.3]} 58... Kg6 {[%clk 0:00:27.5]} 59. Be1 {[%clk 0:00:05.5]} 59... Bd8
{[%clk 0:00:26.2]} 60. Bf2 {[%clk 0:00:05.7]} 60... Be7 {[%clk 0:00:26.1]} 61.
Bg1 {[%clk 0:00:06]} 61... Bf6 {[%clk 0:00:26.3]} 62. Bh2 {[%clk 0:00:06.5]}
62... Be7 {[%clk 0:00:26.7]} 63. Bxe5 {[%clk 0:00:06]} 63... Bd8 {[%clk
0:00:25.5]} 64. Bd6 {[%clk 0:00:06.3]} 64... Bf6 {[%clk 0:00:25.3]} 65. e5
{[%clk 0:00:06.9]} 65... Bd8 {[%clk 0:00:24.7]} 66. e6 {[%clk 0:00:06.9]} 66...
Kf6 {[%clk 0:00:24.7]} 67. e7 {[%clk 0:00:06.8]} 67... Bxe7 {[%clk 0:00:25.2]}
68. Bxe7+ {[%clk 0:00:07.3]} 68... Kxe7 {[%clk 0:00:25.6]} 69. Kxg5 {[%clk
0:00:08]} 69... Ke6 {[%clk 0:00:25.9]} 70. Kxh4 {[%clk 0:00:08]} 70... Ke5
{[%clk 0:00:26.4]} 71. Kg5 {[%clk 0:00:08.7]} 71... Ke4 {[%clk 0:00:26.9]} 72.
h4 {[%clk 0:00:09.6]} 72... Kxe3 {[%clk 0:00:27.4]} 73. h5 {[%clk 0:00:10.5]}
73... Kd4 {[%clk 0:00:27.9]} 74. h6 {[%clk 0:00:11.4]} 74... Kc4 {[%clk
0:00:28.4]} 75. h7 {[%clk 0:00:12.3]} 75... Kxb4 {[%clk 0:00:28.9]} 76. h8=Q
{[%clk 0:00:13.2]} 76... Kxc5 {[%clk 0:00:28.9]} 77. Qb2 {[%clk 0:00:13.1]}
77... Kd6 {[%clk 0:00:25.8]} 78. Qxb7 {[%clk 0:00:12.5]} 78... c5 {[%clk
0:00:26.2]} 79. Qb6+ {[%clk 0:00:12.6]} 79... Kd5 {[%clk 0:00:18.5]} 80. Qxa6
{[%clk 0:00:13.5]} 1-0

[Event "Early-Titled-Tuesday-Blitz-September-26-2023"]
[Site "Chess.com"]
[Date "2023.09.26"]
[Round "10"]
[White "amanmuhammethommadov"]
[Black "jjlai1111"]
[Result "1-0"]
[WhiteElo "2597"]
[BlackElo "2371"]
[TimeControl "180+1"]
[EndTime "9:57:42 PDT"]
[Termination "amanmuhammethommadov won by resignation"]

1. e4 {[%clk 0:03:00]} 1... c6 {[%clk 0:02:59.4]} 2. d4 {[%clk 0:02:57]} 2... d5
{[%clk 0:03:00.1]} 3. exd5 {[%clk 0:02:57.9]} 3... cxd5 {[%clk 0:03:00.4]} 4. c3
{[%clk 0:02:58.4]} 4... Nc6 {[%clk 0:03:00.6]} 5. Bd3 {[%clk 0:02:57.9]} 5...
Nf6 {[%clk 0:03:00.8]} 6. Bf4 {[%clk 0:02:57.5]} 6... Bg4 {[%clk 0:02:59.4]} 7.
Qb3 {[%clk 0:02:55]} 7... Qc8 {[%clk 0:02:59.7]} 8. Nd2 {[%clk 0:02:54.6]} 8...
e6 {[%clk 0:02:59.4]} 9. Ngf3 {[%clk 0:02:54.1]} 9... Be7 {[%clk 0:02:55.1]} 10.
O-O {[%clk 0:02:49.4]} 10... O-O {[%clk 0:02:53.9]} 11. Qc2 {[%clk 0:02:48.9]}
11... Bh5 {[%clk 0:02:50.8]} 12. Ne5 {[%clk 0:02:49.1]} 12... Bg6 {[%clk
0:02:32.3]} 13. Nxg6 {[%clk 0:02:48.9]} 13... hxg6 {[%clk 0:02:32.9]} 14. Nf3
{[%clk 0:02:49.4]} 14... Qd7 {[%clk 0:02:29.1]} 15. Qe2 {[%clk 0:02:48.5]} 15...
a6 {[%clk 0:02:28.3]} 16. a4 {[%clk 0:02:46.8]} 16... Na5 {[%clk 0:02:24.3]} 17.
g3 {[%clk 0:02:46.1]} 17... Rfc8 {[%clk 0:02:23.3]} 18. Ne5 {[%clk 0:02:46]}
18... Qe8 {[%clk 0:02:20.5]} 19. h4 {[%clk 0:02:46.2]} 19... Nd7 {[%clk
0:02:10.4]} 20. Nxd7 {[%clk 0:02:45.5]} 20... Qxd7 {[%clk 0:02:10.5]} 21. Kg2
{[%clk 0:02:46.4]} 21... Bd6 {[%clk 0:02:05.8]} 22. Bg5 {[%clk 0:02:37.2]} 22...
Be7 {[%clk 0:02:02.8]} 23. Rh1 {[%clk 0:02:24.1]} 23... Bxg5 {[%clk 0:01:53.6]}
24. hxg5 {[%clk 0:02:24.3]} 24... Qd6 {[%clk 0:01:54.3]} 25. Qg4 {[%clk
0:02:21.2]} 25... Kf8 {[%clk 0:01:50.8]} 26. Rae1 {[%clk 0:02:07.6]} 26... Ke7
{[%clk 0:01:42.9]} 27. Re2 {[%clk 0:02:00.5]} 27... Nc4 {[%clk 0:01:36.5]} 28.
Rhe1 {[%clk 0:01:53.2]} 28... Rc6 {[%clk 0:01:28.6]} 29. Qh3 {[%clk 0:01:50.6]}
29... Rg8 {[%clk 0:01:10.7]} 30. Rh1 {[%clk 0:01:11.3]} 30... Rb6 {[%clk
0:00:58.5]} 31. b4 {[%clk 0:01:09.3]} 31... Rc6 {[%clk 0:00:56.5]} 32. Qh7
{[%clk 0:00:55.4]} 32... Kf8 {[%clk 0:00:56.1]} 33. Rh4 {[%clk 0:00:55.6]} 33...
Rc8 {[%clk 0:00:52]} 34. Rf4 {[%clk 0:00:32.3]} 34... Ke7 {[%clk 0:00:50.8]} 35.
Qh4 {[%clk 0:00:31.9]} 35... Kf8 {[%clk 0:00:28.9]} 36. Bxg6 {[%clk 0:00:30.3]}
36... Rc7 {[%clk 0:00:24]} 37. Qh5 {[%clk 0:00:24.2]} 37... e5 {[%clk
0:00:16.8]} 38. Rxf7+ {[%clk 0:00:20.6]} 38... Rxf7 {[%clk 0:00:16.7]} 39. Bxf7
{[%clk 0:00:21.5]} 39... g6 {[%clk 0:00:17.2]} 40. Qf3 {[%clk 0:00:13.4]} 40...
e4 {[%clk 0:00:17.6]} 41. Qg4 {[%clk 0:00:05.7]} 41... Kxf7 {[%clk 0:00:17.8]}
42. Re1 {[%clk 0:00:06.3]} 42... Qe6 {[%clk 0:00:13.3]} 43. Qf4+ {[%clk
0:00:06.2]} 43... Ke7 {[%clk 0:00:14]} 44. Rh1 {[%clk 0:00:06.6]} 44... Rg7
{[%clk 0:00:10.6]} 45. Rh8 {[%clk 0:00:06.9]} 45... Rf7 {[%clk 0:00:08]} 46. Qb8
{[%clk 0:00:07.1]} 46... Qd7 {[%clk 0:00:08.7]} 47. Rc8 {[%clk 0:00:05.5]} 47...
Ke6 {[%clk 0:00:06.6]} 48. Re8+ {[%clk 0:00:06]} 48... Kf5 {[%clk 0:00:06.6]}
49. Rf8 {[%clk 0:00:05.3]} 49... Ke6 {[%clk 0:00:05]} 50. Re8+ {[%clk
0:00:05.4]} 50... Re7 {[%clk 0:00:05.5]} 51. Rf8 {[%clk 0:00:06.1]} 51... Rf7
{[%clk 0:00:05.3]} 52. Rg8 {[%clk 0:00:04.7]} 52... Nd6 {[%clk 0:00:04.8]} 53.
Rxg6+ {[%clk 0:00:04.6]} 53... Kf5 {[%clk 0:00:05.4]} 54. Qg8 {[%clk 0:00:05.3]}
54... Kg4 {[%clk 0:00:04.3]} 55. Rxd6 {[%clk 0:00:05.5]} 55... Rxf2+ {[%clk
0:00:03.1]} 56. Kxf2 {[%clk 0:00:05.5]} 56... Qxd6 {[%clk 0:00:03.1]} 57. Ke2
{[%clk 0:00:04.4]} 57... Kxg3 {[%clk 0:00:02.9]} 58. Qf7 {[%clk 0:00:04.4]}
58... e3 {[%clk 0:00:01.5]} 59. g6 {[%clk 0:00:04.8]} 59... Kg4 {[%clk
0:00:01.9]} 60. g7 {[%clk 0:00:05.1]} 60... Qh2+ {[%clk 0:00:02.7]} 61. Kxe3
{[%clk 0:00:05.5]} 61... Qg3+ {[%clk 0:00:03]} 62. Kd2 {[%clk 0:00:05.7]} 62...
Qg2+ {[%clk 0:00:03.2]} 63. Kc1 {[%clk 0:00:06]} 63... Qg1+ {[%clk 0:00:03.5]}
64. Kb2 {[%clk 0:00:05.7]} 64... Qg2+ {[%clk 0:00:03.7]} 65. Kb3 {[%clk
0:00:05.8]} 1-0